bitfinex-derivatives/quotes_SOLF0:USTF0_20250514
["timestamp","ask_amount","ask_price","bid_price","bid_amount"]
[1747232680864,117.99423333,177.02,176.83,19.99383333]
[1747232681062,344.2431,177.01,176.84,101.6061]
[1747232681261,5.6514,176.92,176.87,5.6529]
[1747232681466,99.8,176.95,176.84,101.6061]
[1747232681665,99.8,176.95,176.91,5.6516]
[1747232681865,99.8,176.95,176.84,101.6061]
[1747232682363,99.8,177.0,176.88,18.23423333]
[1747232682566,506.01423333,177.1,176.88,118.03423333]
[1747232682862,197.32,177.09,176.88,118.03423333]
[1747232683071,197.32,177.09,176.92,18.23423333]
[1747232683270,197.32,177.09,176.93,97.52]
[1747232683467,18.23423333,177.06,176.93,97.52]
[1747232684166,142.23423333,177.06,176.93,97.52]
[1747232684666,5.6491,177.0,176.95,5.6503]
[1747232684967,99.82,177.02,176.93,97.52]
[1747232685184,5.6492,176.99,176.95,5.6502]
[1747232685366,99.82,177.02,176.85,29.54133333]
[1747232685570,99.82,177.02,176.86,193.5]
[1747232685766,5.6492,176.99,176.94,5.6506]
[1747232685968,99.82,177.02,176.86,193.5]
[1747232686169,99.82,177.02,176.9,18.23423333]
[1747232686365,99.82,177.02,176.91,1.774]
[1747232686666,99.82,177.02,176.92,96.6]
[1747232687264,99.82,177.02,176.86,96.74]
[1747232687465,99.82,177.02,176.86,193.24]
[1747232688263,5.6495,176.98,176.92,5.6511]
[1747232688464,344.2431,177.01,176.86,193.24]
[1747232688658,344.2431,177.0,176.86,193.24]
[1747232688866,5.6498,176.97,176.92,5.6511]
[1747232689267,344.2431,177.0,176.86,193.24]
[1747232689566,5.6499,176.97,176.92,5.6513]
[1747232689767,344.2431,177.0,176.87,95.84]
[1747232690498,5.6502,176.96,176.91,5.6515]
[1747232690870,344.2431,177.0,176.87,95.84]
[1747232691064,344.2431,177.0,176.86,96.74]
[1747232691368,362.47733333,176.99,176.84,3.7861]
[1747232691569,362.47733333,176.99,176.86,5.6531]
[1747232691570,5.6518,176.91,176.86,5.6531]
[1747232691963,5.6518,176.91,176.84,3.7861]
[1747232692262,96.76,176.95,176.84,3.7861]
[1747232693070,5.6513,176.93,176.87,5.6529]
[1747232693266,96.76,176.95,176.84,3.7861]
[1747232694271,5.6509,176.94,176.89,5.6521]
[1747232694474,96.76,176.95,176.84,3.7861]
[1747232694692,344.2431,176.99,176.84,3.7861]
[1747232695072,96.76,176.98,176.84,3.7861]
[1747232696071,5.6516,176.92,176.87,5.6528]
[1747232696271,5.6516,176.92,176.84,3.7861]
[1747232696674,96.76,176.98,176.84,3.7861]
[1747232696873,344.2431,176.97,176.84,3.7861]
[1747232697074,5.6512,176.93,176.88,5.6524]
[1747232697278,344.2431,176.97,176.84,3.7861]
[1747232697673,5.6514,176.92,176.87,5.6528]
[1747232697975,344.2431,176.97,176.84,1.9033]
[1747232698169,344.2431,176.97,176.82,489.5614]
[1747232698376,344.2431,176.97,176.82,1.7814]
[1747232698674,5.6525,176.89,176.84,5.6536]
[1747232698869,5.6525,176.89,176.82,1.7814]
[1747232699269,93.78,176.92,176.8,98.6507]
[1747232699678,5.6526,176.89,176.84,5.6537]
[1747232699878,93.78,176.92,176.8,98.6507]
[1747232700779,99.4314,176.92,176.8,98.6507]
[1747232700997,93.78,176.92,176.8,98.6507]
[1747232701386,99.4314,176.92,176.8,98.6507]
[1747232701682,344.2431,176.93,176.85,11.22969385]
[1747232701879,5.649,177.0,176.86,188.6604]
[1747232702079,93.78,177.01,176.89,11.22969385]
[1747232702380,344.2431,177.02,176.9,1.8664]
[1747232702780,344.2431,177.02,176.87,1.8423]
[1747232703282,344.2431,177.02,176.87,3.7087]
[1747232703784,344.2431,177.02,176.88,11.3053]
[1747232704084,344.2431,177.02,176.89,92.68]
[1747232705988,5.649,177.0,176.89,92.68]
[1747232706284,344.2431,177.02,176.89,92.68]
[1747232706486,5.6487,177.01,176.96,5.65]
[1747232706686,344.2431,177.02,176.89,92.68]
[1747232707686,5.649,177.0,176.95,5.6502]
[1747232707885,344.2431,177.02,176.87,3.7087]
[1747232708186,344.2431,177.02,176.92,5.6513]
[1747232708387,344.2431,177.02,176.88,92.2]
[1747232709792,5.6492,176.99,176.94,5.6505]
[1747232709982,344.2431,177.02,176.88,92.2]
[1747232710387,5.6491,177.0,176.88,92.2]
[1747232710687,344.2431,177.02,176.88,92.2]
[1747232710883,5.6488,177.0,176.95,5.6503]
[1747232711086,344.2431,177.02,176.88,92.2]
[1747232711487,5.6488,177.0,176.95,5.6502]
[1747232711790,344.2431,177.02,176.88,92.2]
[1747232712177,92.2,177.08,176.88,92.2]
[1747232712178,93.76,177.07,176.88,92.2]
[1747232712382,93.76,177.07,176.93,11.22969385]
[1747232712587,93.76,177.07,176.94,92.2]
[1747232712886,344.2431,177.06,176.94,92.2]
[1747232713284,344.2431,177.05,176.87,3.7087]
[1747232713584,11.22969385,177.0,176.84,93.76]
[1747232713889,11.22969385,177.0,176.87,5.6528]
[1747232713890,5.6517,176.92,176.87,5.6528]
[1747232714090,344.2431,176.98,176.84,93.76]
[1747232714286,344.2431,176.97,176.84,93.76]
[1747232714487,5.6515,176.92,176.88,5.6526]
[1747232714790,344.2431,176.97,176.84,93.76]
[1747232715191,185.94,176.96,176.84,93.76]
[1747232715893,11.22969385,176.95,176.81,92.2]
[1747232716095,5.6522,176.9,176.85,5.6534]
[1747232716393,344.2431,176.94,176.81,92.2]
[1747232716585,5.6522,176.9,176.81,92.2]
[1747232716891,344.2431,176.94,176.81,92.2]
[1747232717092,5.6519,176.91,176.81,92.2]
[1747232717297,344.2431,176.94,176.81,92.2]
[1747232717487,344.2431,176.94,176.79,97.7378]
[1747232717895,344.2431,176.94,176.81,11.22969385]
[1747232718086,349.8939,176.94,176.81,11.22969385]
[1747232718282,344.2431,176.94,176.79,108.96749385]
[1747232718688,5.6515,176.92,176.79,108.96749385]
[1747232718992,344.2431,176.94,176.83,11.22969385]
[1747232719192,344.2431,176.94,176.87,11.22969385]
[1747232719405,488.22,177.0,176.88,1.8867]
[1747232719694,488.22,177.0,176.91,5.6514]
[1747232719695,5.6499,176.97,176.91,5.6514]
[1747232720298,5.6499,176.97,176.9,5.6519]
[1747232720497,488.22,177.0,176.9,5.6519]
[1747232720907,488.22,177.0,176.91,5.6516]
[1747232721198,488.22,177.0,176.88,3.7442]
[1747232721396,488.22,177.0,176.92,5.6514]
[1747232721596,488.22,177.0,176.88,3.7442]
[1747232722095,344.2431,177.04,176.88,3.7442]
[1747232722294,530.2031,177.04,176.91,11.22969385]
[1747232722994,5.6487,177.01,176.94,5.6504]
[1747232723191,530.2031,177.04,176.91,11.22969385]
[1747232723595,438.0231,177.04,176.98,5.6492]
[1747232723795,344.2431,177.04,176.98,5.6492]
[1747232723994,344.2431,177.04,176.92,92.16]
[1747232724299,674.24,177.09,176.95,11.22969385]
[1747232724497,674.24,177.09,176.96,95.5801]
[1747232724693,582.08,177.09,176.96,95.5801]
[1747232724891,582.08,177.09,176.97,3.5964]
[1747232725094,5.6468,177.07,176.98,92.16]
[1747232725400,582.08,177.09,176.97,1.7555]
[1747232725600,593.30969385,177.09,176.91,197.14969385]
[1747232726600,344.2431,177.08,176.91,197.12969385]
[1747232726800,344.2431,177.08,176.91,185.9]
[1747232727302,5.6494,176.99,176.91,185.9]
[1747232727500,185.9,177.02,176.91,185.9]
[1747232727900,191.5484,177.02,176.98,5.6494]
[1747232728103,185.9,177.02,176.91,185.9]
[1747232728334,344.2431,177.01,176.88,3.661]
[1747232728501,5.6503,176.96,176.88,3.661]
[1747232728800,344.2431,177.01,176.88,3.661]
[1747232728998,5.6499,176.97,176.92,5.6512]
[1747232729202,344.2431,177.01,176.92,5.6512]
[1747232729702,344.2431,177.01,176.88,1.8409]
[1747232731302,5.65,176.97,176.92,5.6512]
[1747232731502,344.2431,177.01,176.88,1.8409]
[1747232732406,5.65,176.97,176.88,1.8409]
[1747232732603,344.2431,177.01,176.88,1.8409]
[1747232733009,5.6498,176.97,176.91,5.6514]
[1747232733307,344.2431,177.01,176.88,1.8409]
[1747232733907,344.2431,177.0,176.88,1.8409]
[1747232734107,436.3431,177.0,176.88,1.8409]
[1747232734409,344.2431,177.0,176.88,1.8409]
[1747232734615,344.2431,177.0,176.89,1.8958]
[1747232735203,5.6494,176.99,176.89,1.8958]
[1747232735602,344.2431,177.0,176.89,1.8958]
[1747232736009,184.22,177.06,176.92,11.22969385]
[1747232736205,184.22,177.06,176.93,92.1]
[1747232736405,344.2431,177.08,176.98,5.6493]
[1747232736608,184.2,177.07,176.93,92.1]
[1747232736809,5.6488,177.01,176.95,5.6502]
[1747232737012,184.2,177.07,176.95,5.6502]
[1747232737210,344.2431,177.06,176.93,92.1]
[1747232737505,344.2431,177.06,176.92,195.42969385]
[1747232737736,344.2431,177.06,176.92,184.2]
[1747232737911,344.2431,177.06,176.92,189.8511]
[1747232738110,11.22969385,177.04,176.88,1.8409]
[1747232738512,11.22969385,177.04,176.93,5.6508]
[1747232738711,11.22969385,177.04,176.88,1.8409]
[1747232739018,5.6506,176.95,176.92,5.6514]
[1747232739312,184.18,177.0,176.92,5.6514]
[1747232739508,184.18,177.0,176.93,5.651]
[1747232739703,184.18,177.0,176.88,1.8409]
[1747232740120,344.2431,177.03,176.89,11.22969385]
[1747232740521,344.2431,177.03,177.01,5.6483]
[1747232740821,344.2431,177.08,176.94,184.18]
[1747232741020,344.2431,177.08,176.95,1.891]
[1747232741317,344.2431,177.08,176.96,1.7531]
[1747232741516,204.61943853,177.12,176.97,499.46969385]
[1747232741718,344.2431,177.15,177.01,11.22969385]
[1747232741944,349.8872,177.15,177.09,5.6459]
[1747232742118,344.2431,177.15,177.02,184.18]
[1747232742608,344.2431,177.15,177.03,1.8862]
[1747232743023,344.2431,177.15,177.07,5.6463]
[1747232743216,344.2431,177.15,177.03,1.8862]
[1747232743418,344.2431,177.15,177.03,20.09714747]
[1747232744319,838.1255,177.21,177.13,5.6447]
[1747232744516,349.8855,177.21,177.08,184.1]
[1747232744725,349.8855,177.21,177.09,3.7258]
[1747232745021,344.2431,177.21,177.09,3.7258]
[1747232745520,5.6408,177.26,177.11,18.21094747]
[1747232745719,5.6408,177.26,177.12,1.7507]
[1747232745916,436.2431,177.28,177.12,1.7507]
[1747232746423,344.2431,177.28,177.12,1.7507]
[1747232746816,5.6408,177.26,177.12,1.7507]
[1747232747016,344.2431,177.28,177.12,1.7507]
[1747232748024,349.8831,177.28,177.21,5.642]
[1747232748252,344.2431,177.28,177.17,184.02]
[1747232749120,344.2431,177.28,177.24,5.6411]
[1747232749326,344.2431,177.28,177.17,184.02]
[1747232749619,5.6417,177.23,177.16,5.6437]
[1747232750426,183.98,177.26,177.13,95.8708]
[1747232750621,344.2431,177.25,177.13,114.08174747]
[1747232750925,344.2431,177.25,177.2,5.6424]
[1747232751125,344.2431,177.25,177.13,95.8708]
[1747232751325,344.2431,177.36,177.13,95.8708]
[1747232751528,528.1631,177.35,177.14,18.21094747]
[1747232752229,528.1631,177.35,177.15,91.88]
[1747232752628,5.6402,177.28,177.15,91.88]
[1747232753329,183.9,177.29,177.14,18.21094747]
[1747232753534,183.9,177.29,177.14,110.07094747]
[1747232753725,5.6409,177.25,177.14,91.86]
[1747232753926,183.9,177.29,177.14,91.86]
[1747232754126,183.9,177.29,177.15,18.21094747]
[1747232754426,5.6402,177.28,177.15,18.21094747]
[1747232754646,183.9,177.29,177.15,18.21094747]
[1747232754826,189.5397,177.29,177.24,5.6411]
[1747232755025,183.9,177.29,177.15,18.21094747]
[1747232755229,344.2431,177.28,177.13,95.8708]
[1747232755430,5.6412,177.24,177.19,5.6427]
[1747232755731,344.2431,177.28,177.13,95.8708]
[1747232755930,344.2431,177.28,177.13,114.08174747]
[1747232756130,436.0631,177.28,177.13,114.08174747]
[1747232756332,436.0631,177.28,177.13,95.8708]
[1747232756531,5.6409,177.25,177.2,5.6422]
[1747232756739,436.0631,177.28,177.13,95.8708]
[1747232757033,436.0631,177.28,177.13,92.04]
[1747232757733,5.6414,177.24,177.13,92.04]
[1747232757934,436.0631,177.28,177.13,92.04]
[1747232758235,5.642,177.22,177.17,5.6431]
[1747232758433,5.642,177.22,177.13,92.04]
[1747232758734,5.6415,177.23,177.18,5.6428]
[1747232758927,5.6415,177.23,177.13,92.04]
[1747232759335,436.0631,177.28,177.13,92.04]
[1747232759536,344.2431,177.27,177.13,92.04]
[1747232760134,5.6425,177.2,177.13,92.04]
[1747232760538,5.6425,177.2,177.16,5.6436]
[1747232760734,5.6425,177.2,177.13,92.04]
[1747232760735,5.6428,177.19,177.13,92.04]
[1747232761037,344.2431,177.18,177.08,579.9]
[1747232761341,344.2431,177.17,177.01,3.6562]
[1747232761536,91.76,177.16,177.01,3.6562]
[1747232761742,91.76,177.16,177.06,5.6467]
[1747232761743,5.6457,177.1,177.06,5.6467]
[1747232761942,5.6457,177.1,177.01,3.6562]
[1747232762345,349.8891,177.09,177.0,91.78]
[1747232762843,344.2431,177.09,177.0,91.78]
[1747232763244,344.2431,177.09,177.02,5.6482]
[1747232763543,5.6468,177.07,177.0,91.78]
[1747232763735,344.2431,177.09,177.0,91.78]
[1747232764145,344.2431,177.15,177.01,18.21094747]
[1747232764343,344.2431,177.15,177.09,5.6457]
[1747232764540,344.2431,177.15,177.01,18.21094747]
[1747232764940,344.2431,177.15,177.04,93.33345]
[1747232765844,344.2431,177.15,177.04,1.59345]
[1747232766146,344.2431,177.15,177.04,7.24075]
[1747232766342,344.2431,177.15,177.04,1.59345]
[1747232766748,5.6449,177.13,177.08,5.646]
[1747232767045,435.9631,177.15,177.04,1.59345]
[1747232767248,344.2431,177.15,177.04,1.59345]
[1747232768373,5.6455,177.11,177.05,5.647]
[1747232768545,344.2431,177.15,177.05,5.647]
[1747232768846,5.6451,177.12,177.04,1.59345]
[1747232769145,344.2431,177.15,177.04,1.59345]
[1747232769442,344.2431,177.15,177.1,5.6454]
[1747232769948,344.2431,177.15,177.04,1.59345]
[1747232770245,344.2431,177.15,177.06,18.21488382]
[1747232770548,344.2431,177.15,177.07,183.52]
[1747232771445,91.68,177.21,177.07,183.52]
[1747232771644,91.82,177.22,177.1,18.21488382]
[1747232772248,97.4619,177.22,177.1,18.21488382]
[1747232772448,91.82,177.22,177.06,487.84]
[1747232772749,5.6436,177.17,177.07,91.82]
[1747232772943,110.03488382,177.22,177.07,91.82]
[1747232773449,5.6444,177.14,177.07,97.4664]
[1747232773653,91.8,177.16,177.07,91.82]
[1747232773845,91.8,177.16,177.07,5.6463]
[1747232774052,91.8,177.16,177.04,1.59345]
[1747232774452,5.6447,177.13,177.08,5.6462]
[1747232774756,91.8,177.16,177.04,1.59345]
[1747232775049,5.645,177.12,177.07,5.6463]
[1747232775252,91.8,177.16,177.04,1.59345]
[1747232775654,344.2431,177.15,177.04,1.59345]
[1747232775954,91.8,177.16,177.04,1.59345]
[1747232775955,362.45798382,177.14,177.04,1.59345]
[1747232777160,850.27798382,177.14,177.04,1.59345]
[1747232778057,850.27798382,177.14,177.06,5.6468]
[1747232778354,850.27798382,177.14,177.04,1.59345]
[1747232778355,183.38,177.13,177.04,1.59345]
[1747232778651,5.6458,177.1,177.04,1.59345]
[1747232778853,850.27798382,177.14,177.04,1.59345]
[1747232779052,91.58,177.12,177.04,1.59345]
[1747232780854,91.58,177.12,177.04,7.24085]
[1747232781152,91.56,177.12,177.04,1.59345]
[1747232781349,91.82,177.13,177.04,1.59345]
[1747232782253,344.2431,177.14,177.04,1.59345]
[1747232782444,344.2431,177.14,177.06,5.6468]
[1747232782950,344.2431,177.14,177.06,5.6466]
[1747232783150,344.2431,177.14,177.04,1.59345]
[1747232784562,5.6453,177.11,177.04,7.24095]
[1747232784951,344.2431,177.14,177.04,1.59345]
[1747232785156,344.2431,177.14,177.04,7.24075]
[1747232785457,344.2431,177.14,177.04,1.59345]
[1747232785658,5.6453,177.11,177.05,5.6469]
[1747232785851,344.2431,177.14,177.04,1.59345]
[1747232786054,91.5,177.13,177.04,1.59345]
[1747232786248,344.2431,177.12,177.04,1.59345]
[1747232786753,5.6472,177.05,177.04,1.59345]
[1747232786953,97.1472,177.05,177.04,1.59345]
[1747232787253,91.5,177.05,177.04,1.59345]
[1747232788373,91.82,177.06,177.04,1.59345]
[1747232788374,91.46,177.1,177.04,1.59345]
[1747232789053,344.2431,177.11,177.04,1.59345]
[1747232789266,435.7031,177.11,177.04,1.59345]
[1747232789956,344.2431,177.11,177.04,1.59345]
[1747232791362,344.2431,177.1,177.04,1.59345]
[1747232791557,91.46,177.09,177.04,1.59345]
[1747232791755,5.6469,177.06,177.04,1.59345]
[1747232792156,91.44,177.08,177.04,1.59345]
[1747232793066,5.6468,177.07,177.04,1.59345]
[1747232793359,91.44,177.08,177.04,1.59345]
[1747232794462,91.46,177.09,177.04,1.59345]
[1747232794661,344.2431,177.1,177.04,1.59345]
[1747232795559,5.6465,177.08,177.04,1.59345]
[1747232795858,344.2431,177.1,177.04,1.59345]
[1747232796762,344.2431,177.09,177.04,1.59345]
[1747232796963,5.6466,177.07,177.04,7.24075]
[1747232797164,344.2431,177.09,177.04,1.59345]
[1747232797664,344.2431,177.09,177.08,5.6463]
[1747232797861,344.2431,177.09,177.04,1.59345]
[1747232800165,5.6469,177.07,177.04,1.59345]
[1747232800365,344.2431,177.09,177.04,1.59345]
[1747232800568,5.6472,177.05,177.04,1.59345]
[1747232800766,344.2431,177.09,177.04,1.59345]
[1747232801979,5.6472,177.05,177.04,1.59345]
[1747232805773,5.6472,177.05,177.04,5e-05]
[1747232806099,5.64,177.05,176.95,5.6504]
[1747232806274,353.0,177.04,176.95,5.6504]
[1747232806474,5.6494,176.99,176.9,93.2634]
[1747232806680,353.0,177.04,176.9,93.2634]
[1747232806876,353.0,177.04,176.92,11.21807891]
[1747232807371,353.0,177.04,176.93,91.2]
[1747232808673,5.6485,177.01,176.97,5.6496]
[1747232809077,353.0,177.04,176.93,91.2]
[1747232809768,353.0,177.04,177.03,5.6479]
[1747232809972,579.2,177.1,176.97,91.48]
[1747232810175,488.04,177.1,176.97,93.2746]
[1747232810477,5.646,177.09,176.98,1.8992]
[1747232810678,444.48,177.15,176.99,92.9113]
[1747232810879,91.14,177.14,176.99,92.9113]
[1747232811175,444.48,177.15,177.0,11.21807891]
[1747232811374,353.0,177.14,177.0,11.21807891]
[1747232811568,353.0,177.14,177.04,11.21807891]
[1747232811770,353.0,177.14,177.05,184.37]
[1747232812576,353.0,177.14,177.05,1.75]
[1747232812768,444.46,177.14,177.0,193.77807891]
[1747232812977,444.46,177.14,177.0,182.56]
[1747232813175,5.6464,177.08,177.02,5.648]
[1747232813400,91.1,177.11,177.0,182.56]
[1747232813778,5.6465,177.08,177.02,5.6479]
[1747232813978,91.1,177.11,177.0,182.56]
[1747232814777,353.0,177.13,177.0,182.56]
[1747232814982,353.0,177.13,177.03,11.21807891]
[1747232815278,353.0,177.13,177.11,5.6451]
[1747232815484,353.0,177.13,177.03,11.21807891]
[1747232815674,18.66713302,177.17,177.03,11.21807891]
[1747232816381,24.31053302,177.17,177.12,5.6448]
[1747232816574,18.66713302,177.17,177.06,182.48]
[1747232816974,18.66713302,177.17,177.07,1.8193]
[1747232817174,18.66713302,177.17,177.03,11.21807891]
[1747232817378,18.66713302,177.17,177.02,182.48]
[1747232818284,5.645,177.12,177.02,182.48]
[1747232818476,18.66713302,177.17,177.02,182.48]
[1747232818782,18.66713302,177.17,177.1,5.6456]
[1747232819180,18.66713302,177.17,177.02,182.48]
[1747232819374,18.66713302,177.17,177.03,11.21807891]
[1747232819576,353.0,177.18,177.03,11.21807891]
[1747232819785,353.0,177.18,177.07,11.21807891]
[1747232819985,353.0,177.18,177.11,11.21807891]
[1747232820182,181.92,177.25,177.12,1.8185]
[1747232820383,5.6416,177.23,177.12,1.8185]
[1747232820584,90.96,177.25,177.12,1.8185]
[1747232821093,90.96,177.25,177.12,92.7785]
[1747232821385,5.6424,177.21,177.16,5.6434]
[1747232821585,5.6424,177.21,177.12,92.7785]
[1747232821988,90.96,177.25,177.12,92.7785]
[1747232823683,90.96,177.25,177.13,11.21807891]
[1747232823911,96.601,177.25,177.13,11.21807891]
[1747232824486,443.86,177.28,177.13,11.21807891]
[1747232824986,443.86,177.28,177.15,5.6437]
[1747232825291,443.86,177.28,177.12,92.7785]
[1747232825680,353.0,177.27,177.12,1.8185]
[1747232825991,11.21807891,177.23,177.1,487.86]
[1747232826190,181.76,177.22,177.08,3.7985]
[1747232827203,11.21807891,177.19,177.05,90.94]
[1747232827489,353.0,177.18,177.05,92.7301]
[1747232828994,5.6459,177.1,177.05,92.7301]
[1747232829190,181.7,177.16,177.05,90.94]
[1747232829492,353.0,177.15,177.05,90.94]
[1747232829789,5.6455,177.11,177.05,90.94]
[1747232830088,353.0,177.15,177.05,90.94]
[1747232830391,353.0,177.15,177.08,5.6463]
[1747232830692,353.0,177.15,177.05,90.94]
[1747232832090,353.0,177.15,177.07,5.6465]
[1747232832390,5.6452,177.12,177.07,5.6465]
[1747232832891,5.6447,177.13,177.08,5.6461]
[1747232833090,353.0,177.15,177.05,90.94]
[1747232833794,353.0,177.14,177.04,1.938]
[1747232834198,18.21503564,177.12,177.0,90.94]
[1747232834428,353.0,177.11,176.95,96.4649]
[1747232834595,534.6,177.1,176.96,5.6498]
[1747232834791,18.21503564,177.08,176.95,94.706]
[1747232835191,534.6,177.1,176.95,94.706]
[1747232835695,5.6482,177.02,176.98,5.6494]
[1747232835900,5.6482,177.02,176.95,94.706]
[1747232835901,353.0,177.09,176.95,94.706]
[1747232836194,353.0,177.08,176.95,94.706]
[1747232836393,5.6476,177.04,176.96,1.9205]
[1747232836697,534.56,177.08,176.96,1.9205]
[1747232837210,353.0,177.13,176.98,18.21503564]
[1747232837397,358.6449,177.13,177.07,5.6463]
[1747232837789,358.6449,177.13,177.03,90.6]
[1747232837790,353.0,177.13,177.03,90.6]
[1747232837994,353.0,177.18,177.03,90.6]
[1747232838290,353.0,177.18,177.04,5.5963]
[1747232838991,353.0,177.18,177.06,18.21503564]
[1747232839399,358.6431,177.18,177.12,5.6448]
[1747232839790,5.6434,177.17,177.1,5.6453]
[1747232840098,353.0,177.18,177.1,5.6453]
[1747232840302,5.6438,177.16,177.1,5.6453]
[1747232840490,353.0,177.18,177.09,90.96]
[1747232840691,353.0,177.18,177.04,96.5563]
[1747232840898,353.0,177.17,177.04,102.2036]
[1747232841200,371.21503564,177.17,177.04,96.5563]
[1747232841808,353.0,177.17,177.04,96.5563]
[1747232842200,443.5,177.17,177.04,96.5563]
[1747232842502,5.6443,177.15,177.04,96.5563]
[1747232843102,5.6443,177.15,177.09,5.6457]
[1747232843305,443.5,177.17,177.04,96.5563]
[1747232844307,5.6449,177.13,177.07,5.6465]
[1747232844505,443.5,177.17,177.07,5.6465]
[1747232844800,353.0,177.16,177.07,5.6465]
[1747232845006,353.0,177.16,177.08,5.6462]
[1747232845209,353.0,177.16,177.04,96.5563]
[1747232845405,5.6455,177.11,177.04,96.5563]
[1747232845610,353.0,177.16,177.04,96.5563]
[1747232845810,353.0,177.15,176.99,90.96]
[1747232846011,353.0,177.14,177.06,5.6467]
[1747232846310,353.0,177.14,177.05,90.96]
[1747232846506,353.0,177.14,177.11,5.6451]
[1747232846910,353.0,177.14,177.06,94.0484]
[1747232847212,353.0,177.2,177.07,20.02113564]
[1747232847410,353.0,177.2,177.08,11.1984796]
[1747232847713,353.0,177.2,177.16,5.6437]
[1747232848113,353.0,177.2,177.12,90.96]
[1747232848315,90.96,177.24,177.12,181.32]
[1747232849016,5.6415,177.23,177.12,181.32]
[1747232849318,90.96,177.24,177.17,5.6431]
[1747232849516,90.96,177.24,177.12,90.96]
[1747232850317,90.96,177.24,177.14,5.644]
[1747232850515,90.96,177.24,177.12,90.96]
[1747232850716,5.6437,177.17,177.12,90.96]
[1747232851116,90.3,177.2,177.12,90.96]
[1747232851711,5.6428,177.19,177.12,90.96]
[1747232851912,90.3,177.2,177.12,90.96]
[1747232852110,90.3,177.2,177.17,5.6432]
[1747232852320,90.96,177.24,177.12,90.96]
[1747232852321,5.6418,177.23,177.12,90.96]
[1747232852514,5.6418,177.23,177.18,5.643]
[1747232852910,5.6418,177.23,177.12,90.96]
[1747232852911,95.9611,177.25,177.12,90.96]
[1747232853216,90.32,177.25,177.14,18.19391191]
[1747232853414,487.9,177.28,177.15,93.958]
[1747232854016,5.6403,177.27,177.16,1.9189]
[1747232854719,5.6406,177.26,177.16,1.9189]
[1747232855216,5.6409,177.25,177.16,1.9189]
[1747232855416,487.9,177.28,177.16,1.9189]
[1747232855816,487.9,177.28,177.18,5.643]
[1747232856312,487.9,177.28,177.16,1.9189]
[1747232856515,487.9,177.28,177.12,668.9]
[1747232856916,353.0,177.27,177.12,668.9]
[1747232857118,18.19391191,177.26,177.12,668.9]
[1747232857423,90.3,177.25,177.16,5.6434]
[1747232857819,90.3,177.25,177.12,668.9]
[1747232858018,5.6426,177.2,177.16,5.6434]
[1747232859122,5.6426,177.2,177.12,668.9]
[1747232859123,90.1,177.23,177.12,668.9]
[1747232859719,90.1,177.23,177.13,1.8713]
[1747232860117,353.0,177.24,177.21,5.642]
[1747232860317,353.0,177.24,177.13,1.8713]
[1747232860712,353.0,177.24,177.19,5.6426]
[1747232860918,353.0,177.24,177.13,1.8713]
[1747232861220,5.6416,177.23,177.18,5.6429]